[Event "Fall IM Norm Invitational 2020"]
[Site "Charlotte"]
[Date "2020.10.03"]
[Round "5.4"]
[White "Vivekananthan, Anish"]
[Black "Matros, Alexander"]
[Result "0-1"]
[ECO "D35"]
[WhiteElo "2239"]
[BlackElo "2417"]
[Annotator "ChessBase"]
[PlyCount "104"]
[EventDate "2020.09.30"]
[EventType "tourn"]
[EventCountry "USA"]
[SourceTitle "playchess.com"]
[Source "ChessBase"]
[SourceQuality "1"]
[TimeControl "5400+30"]

1. d4 {[%emt 1:30:30]} d5 {[%emt 1:30:30]} 2. c4 {[%emt 0:00:30]} e6 {[%emt 0:00:30]} 3. Nc3 {[%emt 0:00:30]} Nf6 {[%emt 0:00:30]} 4. cxd5 {[%emt 0:00:30]} exd5 {[%emt 0:00:30]} 5. Bg5 {[%emt 0:00:30]} c6 {[%emt 0:00:30]} 6. e3 {[%emt 0:00:30]} h6 {[%emt 0:00:30]} 7. Bh4 {[%emt 0:00:30]} Bd6 {[%emt 0:00:30]} 8. Bd3 {[%emt 0:00:30]} O-O {[%emt 0:00:30]} 9. Qc2 {[%emt 0:00:30]} a5 {[%emt 0:00:30]} 10. Nf3 {[%emt 0:00:30]} Na6 {[%emt 0:00:30]} 11. a3 {[%emt 0:00:30]} Re8 {[%emt 0:00:30]} 12. O-O {[%emt 0:00:30]} Nc7 {[%emt 0:00:30]} 13. Kh1 {[%emt 0:00:30]} Bg4 {[%emt 0:00:30]} 14. Ng1 {[%emt 0:00:30]} Bd7 {[%emt 0:00:30]} 15. Rae1 {[%emt 0:00:30]} Ne6 {[%emt 0:00:30]} 16. Nf3 {[%emt 0:00:30]} Nf8 {[%emt 0:00:30]} 17. Na4 {[%emt 0:00:30]} Bg4 {[%emt 0:00:30]} 18. Nd2 {[%emt 0:00:30]} g5 {[%emt 0:00:30]} 19. Bg3 {[%emt 0:00:30]} Bxg3 {[%emt 0:00:30]} 20. fxg3 {[%emt 0:00:30]} N8d7 {[%emt 0:00:30]} 21. h3 {[%emt 0:00:30]} Be6 {[%emt 0:00:30]} 22. g4 {[%emt 0:00:30]} Qc7 {[%emt 0:00:30]} 23. Rf3 {[%emt 0:00:30]} Kg7 {[%emt 0:00:30]} 24. Nf1 {[%emt 0:00:30]} h5 {[%emt 0:00:30]} 25. gxh5 {[%emt 0:00:30]} Nxh5 {[%emt 0:00:30]} 26. Bf5 {[%emt 0:00:30]} Rh8 {[%emt 0:00:30]} 27. Kg1 {[%emt 0:00:30]} Qd6 {[%emt 0:00:30]} 28. Re2 {[%emt 0:00:30]} Rae8 {[%emt 0:00:30]} 29. Ref2 {[%emt 0:00:30]} Re7 {[%emt 0:00:30]} 30. Nc3 {[%emt 0:00:30]} Bxf5 {[%emt 0:00:30]} 31. Rxf5 {[%emt 0:00:30]} Qg6 {[%emt 0:00:30]} 32. Qd1 {[%emt 0:00:30]} Kg8 {[%emt 0:00:30]} 33. Qg4 {[%emt 0:00:30]} f6 {[%emt 0:00:30]} 34. R5f3 {[%emt 0:00:30]} Rh6 {[%emt 0:00:30]} 35. Ng3 {[%emt 0:00:30]} Ng7 {[%emt 0:00:30]} 36. Nf1 {[%emt 0:00:30]} f5 {[%emt 0:00:30]} 37. Rxf5 {[%emt 0:00:30]} Nxf5 {[%emt 0:00:30]} 38. Rxf5 {[%emt 0:00:30]} Rg7 {[%emt 0:00:30]} 39. Rf2 {[%emt 0:00:30]} Rh4 {[%emt 0:00:30]} 40. Qg3 {[%emt 0:00:30]} Qh6 {[%emt 0:00:30]} 41. Nh2 {[%emt 0:00:30]} g4 {[%emt 0:00:30]} 42. Rf4 {[%emt 0:00:30]} Nf6 {[%emt 0:00:30]} 43. Kf1 {[%emt 0:00:30]} Qg5 {[%emt 0:00:30]} 44. Rf2 {[%emt 0:00:30]} gxh3 {[%emt 0:00:30]} 45. Qxg5 {[%emt 0:00:30]} Rxg5 {[%emt 0:00:30]} 46. gxh3 {[%emt 0:00:30]} Rxh3 {[%emt 0:00:30]} 47. Nf3 {[%emt 0:00:30]} Rgg3 {[%emt 0:00:30]} 48. Ke2 {[%emt 0:00:30]} Ng4 {[%emt 0:00:30]} 49. Rf1 {[%emt 0:00:30]} Rg2+ {[%emt 0:00:30]} 50. Kd3 {[%emt 0:00:30]} Nf2+ {[%emt 0:00:30]} 51. Ke2 {[%emt 0:00:30]} Ne4+ {[%emt 0:00:30]} 52. Kd3 {[%emt 0:00:30]} Rxf3 {[%emt 0:00:30]} 0-1

[Event "Fall IM Norm Invitational 2020"]
[Site "Charlotte"]
[Date "2020.10.03"]
[Round "5.5"]
[White "Li, Eric"]
[Black "Velikanov, Alexander"]
[Result "1/2-1/2"]
[ECO "A50"]
[WhiteElo "2334"]
[BlackElo "2274"]
[Annotator "ChessBase"]
[PlyCount "124"]
[EventDate "2020.09.30"]
[EventType "tourn"]
[EventCountry "USA"]
[SourceTitle "playchess.com"]
[Source "ChessBase"]
[SourceQuality "1"]
[TimeControl "5400+30"]

1. d4 {[%emt 1:30:30]} Nf6 {[%emt 1:30:30]} 2. c4 {[%emt 0:00:30]} b6 {[%emt 0:00:30]} 3. Nc3 {[%emt 0:00:30]} Bb7 {[%emt 0:00:30]} 4. Qc2 {[%emt 0:00:30]} d5 {[%emt 0:00:30]} 5. cxd5 {[%emt 0:00:30]} Nxd5 {[%emt 0:00:30]} 6. e4 {[%emt 0:00:30]} Nxc3 {[%emt 0:00:30]} 7. bxc3 {[%emt 0:00:30]} e5 {[%emt 0:00:30]} 8. dxe5 {[%emt 0:00:30]} Nd7 {[%emt 0:00:30]} 9. e6 {[%emt 0:00:30]} fxe6 {[%emt 0:00:30]} 10. Be3 {[%emt 0:00:30]} Qh4 {[%emt 0:00:30]} 11. Nf3 {[%emt 0:00:30]} Qxe4 {[%emt 0:00:30]} 12. Qxe4 {[%emt 0:00:30]} Bxe4 {[%emt 0:00:30]} 13. Ng5 {[%emt 0:00:30]} Bf5 {[%emt 0:00:30]} 14. Bc4 {[%emt 0:00:30]} Ke7 {[%emt 0:00:30]} 15. Bf4 {[%emt 0:00:30]} h6 {[%emt 0:00:30]} 16. Nf3 {[%emt 0:00:30]} g5 {[%emt 0:00:30]} 17. Be3 {[%emt 0:00:30]} Bg7 {[%emt 0:00:30]} 18. Nd4 {[%emt 0:00:30]} c5 {[%emt 0:00:30]} 19. Nxf5+ {[%emt 0:00:30]} exf5 {[%emt 0:00:30]} 20. Bd2 {[%emt 0:00:30]} Ne5 {[%emt 0:00:30]} 21. Be2 {[%emt 0:00:30]} Rhd8 {[%emt 0:00:30]} 22. O-O-O {[%emt 0:00:30]} f4 {[%emt 0:00:30]} 23. Kc2 {[%emt 0:00:30]} Rd6 {[%emt 0:00:30]} 24. h4 {[%emt 0:00:30]} Rad8 {[%emt 0:00:30]} 25. hxg5 {[%emt 0:00:30]} hxg5 {[%emt 0:00:30]} 26. g3 {[%emt 0:00:30]} Nd3 {[%emt 0:00:30]} 27. Bxf4 Nxf4 {[%emt 0:00:30]} 28. gxf4 {[%emt 0:01:00]} gxf4 {[%emt 0:00:30]} 29. a4 {[%emt 0:00:30]} Rxd1 {[%emt 0:00:30]} 30. Rxd1 {[%emt 0:00:30]} Rh8 {[%emt 0:00:30]} 31. f3 {[%emt 0:00:30]} Rh2 {[%emt 0:00:30]} 32. Rd2 {[%emt 0:00:30]} Rf2 {[%emt 0:00:30]} 33. Bd1 {[%emt 0:00:30]} Rf1 {[%emt 0:00:30]} 34. Re2+ {[%emt 0:00:30]} Kd6 {[%emt 0:00:30]} 35. Rd2+ {[%emt 0:00:30]} Ke6 {[%emt 0:00:30]} 36. Re2+ {[%emt 0:00:30]} Be5 {[%emt 0:00:30]} 37. Rd2 {[%emt 0:00:30]} Ke7 {[%emt 0:00:30]} 38. Re2 {[%emt 0:00:30]} Kd6 {[%emt 0:00:30]} 39. Rd2+ {[%emt 0:00:30]} Kc7 {[%emt 0:00:30]} 40. Be2 {[%emt 0:00:30]} Ra1 {[%emt 0:00:30]} 41. Kb3 {[%emt 0:00:30]} Rb1+ {[%emt 0:00:30]} 42. Kc2 {[%emt 0:00:30]} Ra1 {[%emt 0:00:30]} 43. Kb3 {[%emt 0:00:30]} Rc1 {[%emt 0:00:30]} 44. Rc2 {[%emt 0:00:30]} Rb1+ {[%emt 0:00:30]} 45. Rb2 {[%emt 0:00:30]} Ra1 {[%emt 0:00:30]} 46. Rd2 {[%emt 0:00:30]} Re1 {[%emt 0:00:30]} 47. Kc2 {[%emt 0:00:30]} Bf6 {[%emt 0:00:30]} 48. Kb3 {[%emt 0:00:30]} Bh4 {[%emt 0:00:30]} 49. Bb5 {[%emt 0:00:30]} Re3 {[%emt 0:00:30]} 50. Rd7+ {[%emt 0:00:30]} Kc8 {[%emt 0:00:30]} 51. Rd3 {[%emt 0:00:30]} Re7 {[%emt 0:00:30]} 52. Ba6+ {[%emt 0:00:30]} Kc7 {[%emt 0:00:30]} 53. Bb5 {[%emt 0:00:30]} Bf2 {[%emt 0:00:30]} 54. Rd2 {[%emt 0:00:30]} Be3 {[%emt 0:00:30]} 55. Rd3 {[%emt 0:00:30]} Rg7 {[%emt 0:00:30]} 56. Rd1 {[%emt 0:00:30]} Rh7 {[%emt 0:00:30]} 57. Bd3 {[%emt 0:00:30]} Rh3 {[%emt 0:00:30]} 58. Be4 {[%emt 0:00:30]} a6 59. Rd7+ {[%emt 0:00:30]} Kxd7 {[%emt 0:01:00]} 60. Bf5+ Kd6 {[%emt 0:00:30]} 61. Bxh3 {[%emt 0:01:00]} Kd5 62. Bf1 {[%emt 0:00:30]} a5 {[%emt 0:01:00]} 1/2-1/2

[Event "Fall IM Norm Invitational 2020"]
[Site "Charlotte"]
[Date "2020.10.03"]
[Round "6.1"]
[White "Stearman, Josiah"]
[Black "Vivekananthan, Anish"]
[Result "0-1"]
[ECO "E05"]
[WhiteElo "2354"]
[BlackElo "2239"]
[Annotator "ChessBase"]
[PlyCount "96"]
[EventDate "2020.09.30"]
[EventType "tourn"]
[EventCountry "USA"]
[SourceTitle "playchess.com"]
[Source "ChessBase"]
[SourceQuality "1"]
[TimeControl "5400+30"]

1. d4 {[%emt 1:30:30]} Nf6 {[%emt 1:30:30]} 2. c4 {[%emt 0:00:30]} e6 {[%emt 0:00:30]} 3. Nf3 {[%emt 0:00:30]} d5 {[%emt 0:00:30]} 4. g3 {[%emt 0:00:30]} Be7 {[%emt 0:00:30]} 5. Bg2 {[%emt 0:00:30]} O-O {[%emt 0:00:30]} 6. O-O {[%emt 0:00:30]} dxc4 {[%emt 0:00:30]} 7. Qc2 {[%emt 0:00:30]} b6 {[%emt 0:00:30]} 8. Ne5 {[%emt 0:00:30]} Qxd4 {[%emt 0:00:30]} 9. Bxa8 {[%emt 0:00:30]} Qxe5 {[%emt 0:00:30]} 10. Bf3 {[%emt 0:00:30]} Ba6 {[%emt 0:00:30]} 11. Bf4 {[%emt 0:00:30]} Qc5 {[%emt 0:00:30]} 12. Nc3 {[%emt 0:00:30]} Nd5 {[%emt 0:00:30]} 13. Ne4 {[%emt 0:00:30]} Qb5 {[%emt 0:00:30]} 14. a4 {[%emt 0:00:30]} Qd7 {[%emt 0:00:30]} 15. Rfd1 {[%emt 0:00:30]} Nc6 {[%emt 0:00:30]} 16. Nc3 {[%emt 0:00:30]} Ncb4 {[%emt 0:00:30]} 17. Qd2 {[%emt 0:00:30]} c6 {[%emt 0:00:30]} 18. e4 {[%emt 0:00:30]} Rd8 {[%emt 0:00:30]} 19. exd5 {[%emt 0:00:30]} cxd5 {[%emt 0:00:30]} 20. Nb5 {[%emt 0:00:30]} h6 {[%emt 0:00:30]} 21. Be2 {[%emt 0:00:30]} Bc8 {[%emt 0:00:30]} 22. Bc7 {[%emt 0:00:30]} Rf8 {[%emt 0:00:30]} 23. Bxc4 {[%emt 0:00:30]} a6 {[%emt 0:00:30]} 24. Bf4 {[%emt 0:00:30]} axb5 {[%emt 0:00:30]} 25. Bxb5 {[%emt 0:00:30]} Qa7 {[%emt 0:00:30]} 26. Rac1 {[%emt 0:00:30]} Bc5 {[%emt 0:00:30]} 27. Be3 {[%emt 0:00:30]} Bb7 {[%emt 0:00:30]} 28. Bd4 {[%emt 0:00:30]} Rc8 {[%emt 0:00:30]} 29. Qf4 {[%emt 0:00:30]} Nc6 {[%emt 0:00:30]} 30. Bxc6 {[%emt 0:00:30]} Bxc6 {[%emt 0:00:30]} 31. b4 {[%emt 0:00:30]} Bxb4 {[%emt 0:00:30]} 32. Bxg7 {[%emt 0:00:30]} Kxg7 {[%emt 0:00:30]} 33. Qxb4 {[%emt 0:00:30]} Qd7 {[%emt 0:00:30]} 34. Qxb6 {[%emt 0:00:30]} e5 {[%emt 0:00:30]} 35. Rc5 {[%emt 0:00:30]} d4 {[%emt 0:00:30]} 36. Rxe5 {[%emt 0:00:30]} Bf3 {[%emt 0:00:30]} 37. Qb3 {[%emt 0:00:30]} d3 {[%emt 0:00:30]} 38. Re3 {[%emt 0:00:30]} Bxd1 {[%emt 0:00:30]} 39. Rxd3 {[%emt 0:00:30]} Bxb3 40. Rxd7 Bxa4 {[%emt 0:01:00]} 41. Rd3 {[%emt 0:01:00]} Rc1+ {[%emt 0:00:30]} 42. Kg2 {[%emt 0:00:30]} Bc6+ {[%emt 0:00:30]} 43. Kh3 {[%emt 0:00:30]} Rf1 {[%emt 0:00:30]} 44. f4 {[%emt 0:00:30]} Rf2 {[%emt 0:00:30]} 45. Rd6 {[%emt 0:00:30]} Bg2+ {[%emt 0:00:30]} 46. Kg4 {[%emt 0:00:30]} Bf3+ {[%emt 0:00:30]} 47. Kh3 {[%emt 0:00:30]} h5 {[%emt 0:00:30]} 48. Rd3 {[%emt 0:00:30]} Bg4+ {[%emt 0:00:30]} 0-1

[Event "Fall IM Norm Invitational 2020"]
[Site "Charlotte"]
[Date "2020.10.03"]
[Round "6.2"]
[White "Matros, Alexander"]
[Black "Li, Eric"]
[Result "1/2-1/2"]
[ECO "B20"]
[WhiteElo "2417"]
[BlackElo "2334"]
[Annotator "ChessBase"]
[PlyCount "77"]
[EventDate "2020.09.30"]
[EventType "tourn"]
[EventCountry "USA"]
[SourceTitle "playchess.com"]
[Source "ChessBase"]
[SourceQuality "1"]
[TimeControl "5400+30"]

1. e4 {[%emt 1:30:30]} c5 2. b3 Nc6 3. Bb2 d6 4. Bb5 {[%emt 0:01:30]} Bd7 {[%emt 1:32:00]} 5. f4 {[%emt 0:00:30]} Nf6 {[%emt 0:00:30]} 6. Nc3 {[%emt 0:00:30]} g6 {[%emt 0:00:30]} 7. Bxc6 {[%emt 0:00:30]} Bxc6 {[%emt 0:00:30]} 8. Qe2 {[%emt 0:00:30]} Bg7 {[%emt 0:00:30]} 9. O-O-O {[%emt 0:00:30]} O-O {[%emt 0:00:30]} 10. Nf3 {[%emt 0:00:30]} Qa5 {[%emt 0:00:30]} 11. e5 {[%emt 0:00:30]} Nd5 {[%emt 0:00:30]} 12. Nxd5 {[%emt 0:00:30]} Bxd5 {[%emt 0:00:30]} 13. Kb1 {[%emt 0:00:30]} Rac8 {[%emt 0:00:30]} 14. exd6 {[%emt 0:00:30]} exd6 {[%emt 0:00:30]} 15. Bxg7 {[%emt 0:00:30]} Kxg7 {[%emt 0:00:30]} 16. Rhe1 {[%emt 0:00:30]} Rc6 {[%emt 0:00:30]} 17. Qe3 {[%emt 0:00:30]} f6 {[%emt 0:00:30]} 18. Qc3 {[%emt 0:00:30]} Qxc3 {[%emt 0:00:30]} 19. dxc3 {[%emt 0:00:30]} Bxf3 {[%emt 0:00:30]} 20. gxf3 {[%emt 0:00:30]} Kf7 {[%emt 0:00:30]} 21. f5 {[%emt 0:00:30]} Re8 {[%emt 0:00:30]} 22. fxg6+ {[%emt 0:00:30]} hxg6 {[%emt 0:00:30]} 23. Rxe8 {[%emt 0:00:30]} Kxe8 {[%emt 0:00:30]} 24. c4 {[%emt 0:00:30]} Ke7 {[%emt 0:00:30]} 25. Re1+ {[%emt 0:00:30]} Kf7 {[%emt 0:00:30]} 26. Kc1 {[%emt 0:00:30]} Rc8 {[%emt 0:00:30]} 27. Kd2 {[%emt 0:00:30]} Rh8 {[%emt 0:00:30]} 28. Re2 {[%emt 0:00:30]} Rh5 {[%emt 0:00:30]} 29. Ke3 {[%emt 0:00:30]} Re5+ {[%emt 0:00:30]} 30. Kf2 {[%emt 0:00:30]} Rf5 {[%emt 0:00:30]} 31. h4 {[%emt 0:00:30]} Rh5 {[%emt 0:00:30]} 32. Kg3 {[%emt 0:00:30]} Re5 {[%emt 0:00:30]} 33. Rd2 {[%emt 0:00:30]} Ke6 {[%emt 0:00:30]} 34. Kf4 {[%emt 0:00:30]} Re1 {[%emt 0:00:30]} 35. Rg2 {[%emt 0:00:30]} Kf7 {[%emt 0:00:30]} 36. Rd2 {[%emt 0:00:30]} Ke6 {[%emt 0:00:30]} 37. Rg2 {[%emt 0:00:30]} Kf7 {[%emt 0:00:30]} 38. Rd2 {[%emt 0:00:30]} Ke6 {[%emt 0:00:30]} 39. Rg2 {[%emt 0:00:30]} 1/2-1/2

[Event "Fall IM Norm Invitational 2020"]
[Site "Charlotte"]
[Date "2020.10.03"]
[Round "6.5"]
[White "Krykun, Yuriy"]
[Black "Francisco, Richard"]
[Result "1-0"]
[ECO "A36"]
[WhiteElo "2371"]
[BlackElo "2303"]
[Annotator "ChessBase"]
[PlyCount "93"]
[EventDate "2020.09.30"]
[EventType "tourn"]
[EventCountry "USA"]
[SourceTitle "playchess.com"]
[Source "ChessBase"]
[SourceQuality "1"]
[TimeControl "5400+30"]

1. c4 {[%emt 1:30:30]} c5 2. g3 Nc6 3. Bg2 g6 4. Nc3 Bg7 5. d3 d6 {[%emt 1:32:30]} 6. Qd2 {[%emt 0:02:30]} e5 {[%emt 0:00:30]} 7. b3 {[%emt 0:00:30]} Nge7 {[%emt 0:00:30]} 8. Bb2 {[%emt 0:00:30]} O-O {[%emt 0:00:30]} 9. e3 {[%emt 0:00:30]} Be6 {[%emt 0:00:30]} 10. Nd5 {[%emt 0:00:30]} Qd7 {[%emt 0:00:30]} 11. h4 {[%emt 0:00:30]} Bxd5 {[%emt 0:00:30]} 12. cxd5 {[%emt 0:00:30]} Nb4 {[%emt 0:00:30]} 13. e4 {[%emt 0:00:30]} Qb5 {[%emt 0:00:30]} 14. Bf1 {[%emt 0:00:30]} a5 {[%emt 0:00:30]} 15. d4 {[%emt 0:00:30]} Qb6 {[%emt 0:00:30]} 16. dxe5 {[%emt 0:00:30]} dxe5 {[%emt 0:00:30]} 17. Bc4 {[%emt 0:00:30]} Nc8 {[%emt 0:00:30]} 18. Nf3 {[%emt 0:00:30]} Nd6 {[%emt 0:00:30]} 19. Qe2 {[%emt 0:00:30]} Rfe8 {[%emt 0:00:30]} 20. O-O {[%emt 0:00:30]} Na6 {[%emt 0:00:30]} 21. a4 {[%emt 0:00:30]} Nc7 {[%emt 0:00:30]} 22. h5 {[%emt 0:00:30]} Re7 {[%emt 0:00:30]} 23. Kg2 {[%emt 0:00:30]} Rf8 {[%emt 0:00:30]} 24. hxg6 {[%emt 0:00:30]} hxg6 {[%emt 0:00:30]} 25. Rh1 {[%emt 0:00:30]} f5 {[%emt 0:00:30]} 26. exf5 {[%emt 0:00:30]} Rxf5 {[%emt 0:00:30]} 27. Nh4 {[%emt 0:00:30]} Rf6 {[%emt 0:00:30]} 28. Bc1 {[%emt 0:00:30]} Ref7 {[%emt 0:00:30]} 29. Rf1 {[%emt 0:00:30]} e4 {[%emt 0:00:30]} 30. Ra2 {[%emt 0:00:30]} Rf3 {[%emt 0:00:30]} 31. Kg1 {[%emt 0:00:30]} Rxb3 {[%emt 0:00:30]} 32. Bxb3 {[%emt 0:00:30]} Qxb3 {[%emt 0:00:30]} 33. Ra3 {[%emt 0:00:30]} Qxd5 {[%emt 0:00:30]} 34. Nxg6 {[%emt 0:00:30]} Nc4 {[%emt 0:00:30]} 35. Nf4 {[%emt 0:00:30]} Rxf4 {[%emt 0:00:30]} 36. Bxf4 {[%emt 0:00:30]} Ne6 {[%emt 0:00:30]} 37. Qa2 {[%emt 0:00:30]} Bb2 {[%emt 0:00:30]} 38. Rb3 {[%emt 0:00:30]} Be5 {[%emt 0:00:30]} 39. Qe2 {[%emt 0:00:30]} Bg7 {[%emt 0:00:30]} 40. Rxb7 {[%emt 0:00:30]} Qxb7 {[%emt 0:00:30]} 41. Qxc4 {[%emt 0:00:30]} Kf7 {[%emt 0:00:30]} 42. Re1 {[%emt 0:00:30]} Bd4 {[%emt 0:00:30]} 43. Be3 {[%emt 0:00:30]} Kf6 {[%emt 0:00:30]} 44. Kg2 {[%emt 0:00:30]} Kf5 {[%emt 0:00:30]} 45. Qe2 {[%emt 0:00:30]} Bxe3 {[%emt 0:00:30]} 46. Qxe3 {[%emt 0:00:30]} Ke5 {[%emt 0:00:30]} 47. f3 {[%emt 0:00:30]} 1-0

[Event "Fall IM Norm Invitational 2020"]
[Site "Charlotte"]
[Date "2020.10.04"]
[Round "7.1"]
[White "Li, Eric"]
[Black "Stearman, Josiah"]
[Result "0-1"]
[ECO "E07"]
[WhiteElo "2334"]
[BlackElo "2354"]
[Annotator "ChessBase"]
[PlyCount "106"]
[EventDate "2020.09.30"]
[EventType "tourn"]
[EventCountry "USA"]
[SourceTitle "playchess.com"]
[Source "ChessBase"]
[SourceQuality "1"]
[TimeControl "5400+30"]

1. d4 {[%emt 1:30:30]} Nf6 {[%emt 1:30:30]} 2. c4 {[%emt 0:00:30]} e6 {[%emt 0:00:30]} 3. g3 {[%emt 0:00:30]} d5 {[%emt 0:00:30]} 4. Bg2 {[%emt 0:00:30]} Be7 {[%emt 0:00:30]} 5. Nf3 {[%emt 0:00:30]} O-O {[%emt 0:00:30]} 6. Nc3 {[%emt 0:00:30]} c6 {[%emt 0:00:30]} 7. O-O {[%emt 0:00:30]} b6 {[%emt 0:00:30]} 8. b3 {[%emt 0:00:30]} Nbd7 {[%emt 0:00:30]} 9. Qd3 {[%emt 0:00:30]} Ba6 {[%emt 0:00:30]} 10. Rd1 {[%emt 0:00:30]} c5 {[%emt 0:00:30]} 11. e4 {[%emt 0:00:30]} cxd4 {[%emt 0:00:30]} 12. Nxd4 {[%emt 0:00:30]} dxc4 {[%emt 0:00:30]} 13. bxc4 {[%emt 0:00:30]} Qc8 {[%emt 0:00:30]} 14. Ndb5 {[%emt 0:00:30]} Ne5 {[%emt 0:00:30]} 15. Qe2 {[%emt 0:00:30]} Bxb5 {[%emt 0:00:30]} 16. Nxb5 {[%emt 0:00:30]} Qxc4 {[%emt 0:00:30]} 17. Qxc4 {[%emt 0:00:30]} Nxc4 {[%emt 0:00:30]} 18. e5 {[%emt 0:00:30]} Nd5 {[%emt 0:00:30]} 19. Bxd5 {[%emt 0:00:30]} exd5 {[%emt 0:00:30]} 20. Nc7 {[%emt 0:00:30]} Rac8 {[%emt 0:00:30]} 21. Nxd5 {[%emt 0:00:30]} Bc5 {[%emt 0:00:30]} 22. Bf4 {[%emt 0:00:30]} Rfe8 {[%emt 0:00:30]} 23. Re1 {[%emt 0:00:30]} Bd4 {[%emt 0:00:30]} 24. Rac1 {[%emt 0:00:30]} Rc5 {[%emt 0:00:30]} 25. Kg2 {[%emt 0:00:30]} b5 {[%emt 0:00:30]} 26. Nb4 {[%emt 0:00:30]} h6 {[%emt 0:00:30]} 27. h4 {[%emt 0:00:30]} a5 {[%emt 0:00:30]} 28. Nd3 {[%emt 0:00:30]} Rcc8 {[%emt 0:00:30]} 29. Re2 {[%emt 0:00:30]} b4 {[%emt 0:00:30]} 30. g4 {[%emt 0:00:30]} Bc3 {[%emt 0:00:30]} 31. g5 {[%emt 0:00:30]} h5 {[%emt 0:00:30]} 32. f3 {[%emt 0:00:30]} Nd6 {[%emt 0:00:30]} 33. Nf2 {[%emt 0:00:30]} Nf5 {[%emt 0:00:30]} 34. Bg3 {[%emt 0:00:30]} a4 {[%emt 0:00:30]} 35. Ne4 {[%emt 0:00:30]} Nxg3 {[%emt 0:00:30]} 36. Nxg3 {[%emt 0:00:30]} b3 {[%emt 0:00:30]} 37. axb3 {[%emt 0:00:30]} axb3 {[%emt 0:00:30]} 38. Nxh5 {[%emt 0:00:30]} Bd4 {[%emt 0:00:30]} 39. Rb1 {[%emt 0:00:30]} Rc2 {[%emt 0:00:30]} 40. Nf4 {[%emt 0:00:30]} Rxe5 {[%emt 0:00:30]} 41. Kf1 {[%emt 0:00:30]} Rexe2 {[%emt 0:00:30]} 42. Nxe2 {[%emt 0:00:30]} b2 {[%emt 0:00:30]} 43. Ke1 {[%emt 0:00:30]} Be3 {[%emt 0:00:30]} 44. Kd1 {[%emt 0:00:30]} Rd2+ {[%emt 0:00:30]} 45. Ke1 {[%emt 0:00:30]} g6 {[%emt 0:00:30]} 46. f4 {[%emt 0:00:30]} Kf8 {[%emt 0:00:30]} 47. Kf1 {[%emt 0:00:30]} Rc2 {[%emt 0:00:30]} 48. Ke1 {[%emt 0:00:30]} Rc1+ {[%emt 0:00:30]} 49. Nxc1 {[%emt 0:00:30]} bxc1=Q+ {[%emt 0:00:30]} 50. Rxc1 {[%emt 0:00:30]} Bxc1 {[%emt 0:00:30]} 51. h5 {[%emt 0:00:30]} gxh5 {[%emt 0:00:30]} 52. Ke2 {[%emt 0:00:30]} Bxf4 {[%emt 0:00:30]} 53. Kf3 {[%emt 0:00:30]} Bxg5 {[%emt 0:00:30]} 0-1